fUSD/lending_fUSD_20250716
["ID","MTS","AMOUNT","RATE_DAILY","PERIOD"]
[372445748,1752647440730,-460.0,0.00021917,2]
[372445750,1752647440740,-467.14804141,0.00021917,2]
[372445753,1752647440749,-460.0,0.00021917,2]
[372445754,1752647440758,-460.0,0.00021917,2]
[372445756,1752647440768,-460.0,0.00021917,2]
[372445758,1752647440778,-460.0,0.00021917,2]
[372445760,1752647440788,-460.0,0.00021917,2]
[372445762,1752647440797,-460.0,0.00021917,2]
[372445765,1752647440808,-460.0,0.00021917,2]
[372445766,1752647440817,-460.0,0.00021917,2]
[372445769,1752647440827,-460.0,0.00021917,2]
[372445771,1752647440837,-461.67090361,0.00021917,2]
[372445773,1752647440846,-460.0,0.00021917,2]
[372445774,1752647440855,-460.0,0.00021917,2]
[372445776,1752647440864,-460.0,0.00021917,2]
[372445779,1752647440875,-460.0,0.00021917,2]
[372445780,1752647440884,-434.21477913,0.00021917,2]
[372445783,1752647440893,-481.68365117,0.00021917,2]
[372445784,1752647440903,-460.0,0.00021917,2]
[372445786,1752647440912,-460.0,0.00021917,2]
[372445788,1752647440922,-179.65838813,0.00021917,2]
[372445790,1752647440932,-460.0,0.00021917,2]
[372445792,1752647440941,-460.0,0.00021917,2]
[372445794,1752647440950,-473.3,0.00021917,2]
[372445797,1752647440960,-460.0,0.00021917,2]
[372445799,1752647440970,-460.0,0.00021917,2]
[372445800,1752647440979,-460.0,0.00021917,2]
[372445802,1752647440989,-1251.02,0.00021917,2]
[372445804,1752647440998,-460.0,0.00021917,2]
[372445806,1752647441007,-1001.9,0.00021917,2]
[372445808,1752647441017,-460.0,0.00021917,2]
[372445810,1752647441026,-465.04302869,0.00021917,2]
[372445812,1752647441035,-331.86082138,0.00021917,2]
[372445814,1752647441046,-774.46,0.00021917,2]
[372445816,1752647441055,-460.0,0.00021917,2]
[372445818,1752647441064,-741.84,0.00021917,2]
[372445820,1752647441073,-460.0,0.00021917,2]
[372445822,1752647441083,-460.0,0.00021917,2]
[372445824,1752647441092,-460.0,0.00021917,2]
[372445826,1752647441101,-460.0,0.00021917,2]
[372445828,1752647441110,-460.0,0.00021917,2]
[372445830,1752647441119,-460.0,0.00021917,2]
[372445832,1752647441128,-461.83715601,0.00021917,2]
[372445834,1752647441138,-460.0,0.00021917,2]
[372445836,1752647441148,-460.0,0.00021917,2]
[372445838,1752647441157,-681.57,0.00021917,2]
[372445840,1752647441167,-150.923723,0.00021917,2]
[372445842,1752647441177,-460.0,0.00021917,2]
[372445844,1752647441186,-460.0,0.00021917,2]
[372445846,1752647441196,-460.0,0.00021917,2]
[372445848,1752647441206,-460.0,0.00021917,2]
[372445850,1752647441215,-1113.01,0.00021917,2]
[372445852,1752647441225,-460.0,0.00021917,2]
[372445854,1752647441234,-460.0,0.00021917,2]
[372445856,1752647441244,-492.41,0.00021917,2]
[372445858,1752647441253,-1023.27,0.00021917,2]
[372445860,1752647441263,-669.14,0.00021917,2]
[372445862,1752647441272,-460.0,0.00021917,2]
[372445864,1752647441282,-460.0,0.00021917,2]
[372445866,1752647441291,-460.0,0.00021917,2]
[372445868,1752647441301,-558.14,0.00021917,2]
[372445870,1752647441310,-460.0,0.00021917,2]
[372445872,1752647441320,-1584.59,0.00021917,2]
[372445874,1752647441329,-460.0,0.00021917,2]
[372445876,1752647441339,-460.0,0.00021917,2]
[372445878,1752647441349,-460.0,0.00021917,2]
[372445880,1752647441358,-460.0,0.00021917,2]
[372445881,1752647441368,-460.0,0.00021917,2]
[372445882,1752647441376,-460.0,0.00021917,2]
[372445883,1752647441385,-460.0,0.00021917,2]
[372445884,1752647441394,-460.0,0.00021917,2]
[372445885,1752647441403,-460.0,0.00021917,2]
[372445886,1752647441412,-460.0,0.00021917,2]
[372445887,1752647441421,-460.0,0.00021917,2]
[372445888,1752647441432,-460.0,0.00021917,2]
[372445889,1752647441441,-533.47157827,0.00021917,2]
[372445890,1752647441450,-460.0,0.00021917,2]
[372445891,1752647441459,-460.0,0.00021917,2]
[372445893,1752647441468,-460.0,0.00021917,2]
[372445895,1752647441478,-821.08,0.00021917,2]
[372445897,1752647441488,-869.21,0.00021917,2]
[372445899,1752647441498,-460.0,0.00021917,2]
[372445901,1752647441508,-152.839817,0.00021917,2]
[372445930,1752647441784,-158.061984,0.00021917,2]
[372445932,1752647441794,-460.0,0.00021917,2]
[372445934,1752647441804,-922.81,0.00021917,2]
[372445936,1752647441815,-3230.590099,0.00021917,2]
[372445938,1752647441824,-460.0,0.00021917,2]
[372445940,1752647441835,-460.0,0.00021917,2]
[372445942,1752647441844,-460.0,0.00021917,2]
[372445944,1752647441854,-460.0,0.00021917,2]
[372445946,1752647441863,-3740.90148,0.00021917,2]
[372445948,1752647441872,-460.0,0.00021917,2]
[372445950,1752647441882,-461.85660588,0.00021917,2]
[372445952,1752647441892,-460.0,0.00021917,2]
[372445954,1752647441902,-3676.397568,0.00021917,2]
[372445956,1752647441911,-460.0,0.00021917,2]
[372445958,1752647441921,-460.0,0.00021917,2]
[372445960,1752647441933,-460.0,0.00021917,2]
[372445962,1752647441942,-460.0,0.00021917,2]
[372445964,1752647441952,-835.88,0.00021917,2]
[372445966,1752647441961,-460.0,0.00021917,2]
[372445969,1752647441972,-1273.73,0.00021917,2]
[372445971,1752647441981,-460.0,0.00021917,2]
[372445972,1752647441991,-1000.0,0.00021917,2]
[372445975,1752647442000,-542.66064913,0.00021917,2]
[372445977,1752647442010,-460.0,0.00021917,2]
[372445979,1752647442020,-460.0,0.00021917,2]
[372445981,1752647442030,-460.0,0.00021917,2]
[372445983,1752647442040,-487.39760669,0.00021917,2]
[372445985,1752647442050,-449.76738851,0.00021917,2]
[372445987,1752647442066,-460.0,0.00021917,2]
[372445989,1752647442075,-460.0,0.00021917,2]
[372445991,1752647442087,-557.56,0.00021917,2]
[372445993,1752647442103,-475.52,0.00021917,2]
[372445995,1752647442113,-460.0,0.00021917,2]
[372445997,1752647442127,-1867.41,0.00021917,2]
[372445999,1752647442138,-151.0,0.00021917,2]
[372446001,1752647442148,-460.0,0.00021917,2]
[372446003,1752647442162,-460.0,0.00021917,2]
[372446005,1752647442172,-460.0,0.00021917,2]
[372446007,1752647442184,-1510.25,0.00021917,2]
[372446009,1752647442194,-460.0,0.00021917,2]
[372446011,1752647442203,-460.0,0.00021917,2]
[372446013,1752647442213,-460.0,0.00021917,2]
[372446015,1752647442222,-460.0,0.00021917,2]
[372446017,1752647442232,-488.34,0.00021917,2]
[372446019,1752647442242,-621.52,0.00021917,2]
[372446021,1752647442251,-460.0,0.00021917,2]
[372446023,1752647442261,-623.95,0.00021917,2]
[372446025,1752647442271,-460.0,0.00021917,2]
[372446027,1752647442280,-460.0,0.00021917,2]
[372446029,1752647442290,-460.0,0.00021917,2]
[372446031,1752647442300,-151.0,0.00021917,2]
[372446033,1752647442310,-1528.2,0.00021917,2]
[372446035,1752647442320,-760.89,0.00021917,2]
[372446037,1752647442329,-151.0,0.00021917,2]
[372446039,1752647442339,-460.0,0.00021917,2]
[372446041,1752647442349,-151.0,0.00021917,2]
[372446043,1752647442359,-1433.87,0.00021917,2]
[372446045,1752647442369,-460.0,0.00021917,2]
[372446047,1752647442379,-461.5675347,0.00021917,2]
[372446049,1752647442388,-460.0,0.00021917,2]
[372446051,1752647442398,-460.0,0.00021917,2]
[372446053,1752647442408,-460.0,0.00021917,2]
[372446055,1752647442417,-460.0,0.00021917,2]
[372446057,1752647442428,-460.0,0.00021917,2]
[372446059,1752647442439,-460.0,0.00021917,2]
[372446061,1752647442448,-460.0,0.00021917,2]
[372446063,1752647442458,-756.66,0.00021917,2]
[372446065,1752647442468,-281.0935359,0.00021917,2]
[372446067,1752647442477,-1349.37,0.00021917,2]
[372446069,1752647442487,-460.0,0.00021917,2]
[372446071,1752647442497,-460.0,0.00021917,2]
[372446073,1752647442507,-460.0,0.00021917,2]
[372446075,1752647442517,-460.0,0.00021917,2]
[372446077,1752647442526,-460.0,0.00021917,2]
[372446079,1752647442536,-460.54169721,0.00021917,2]
[372446081,1752647442546,-1023.55,0.00021917,2]
[372446083,1752647442555,-460.0,0.00021917,2]
[372446086,1752647442565,-460.0,0.00021917,2]
[372446088,1752647442575,-460.0,0.00021917,2]
[372446090,1752647442584,-1134.86,0.00021917,2]
[372446091,1752647442594,-460.0,0.00021917,2]
[372446094,1752647442604,-463.6925277,0.00021917,2]
[372446096,1752647442613,-564.04,0.00021917,2]
[372446098,1752647442623,-460.0,0.00021917,2]
[372446100,1752647442633,-460.0,0.00021917,2]
[372446102,1752647442643,-460.0,0.00021917,2]
[372446104,1752647442652,-460.0,0.00021917,2]
[372446106,1752647442662,-460.0,0.00021917,2]
[372446108,1752647442671,-460.0,0.00021917,2]
[372446110,1752647442682,-460.0,0.00021917,2]
[372446112,1752647442692,-276.47802,0.00021917,2]
[372446114,1752647442702,-631.23,0.00021917,2]
[372446116,1752647442712,-460.0,0.00021917,2]
[372446118,1752647442721,-460.0,0.00021917,2]
[372446120,1752647442732,-460.0,0.00021917,2]
[372446122,1752647442742,-460.0,0.00021917,2]
[372446124,1752647442752,-1043.08,0.00021917,2]
[372446126,1752647442761,-460.0,0.00021917,2]
[372446128,1752647442772,-151.0,0.00021917,2]
[372446130,1752647442782,-460.0,0.00021917,2]
[372446132,1752647442792,-460.0,0.00021917,2]
[372446134,1752647442803,-151.0,0.00021917,2]
[372446136,1752647442814,-526.3220976,0.00021917,2]
[372446138,1752647442824,-460.0,0.00021917,2]
[372446140,1752647442834,-460.0,0.00021917,2]
[372446142,1752647442845,-460.0,0.00021917,2]
[372446144,1752647442855,-460.0,0.00021917,2]
[372446146,1752647442865,-460.0,0.00021917,2]
[372446148,1752647442875,-460.0,0.00021917,2]
[372446150,1752647442884,-460.0,0.00021917,2]
[372446152,1752647442894,-460.0,0.00021917,2]
[372446154,1752647442904,-658.41,0.00021917,2]
[372446156,1752647442915,-460.0,0.00021917,2]
[372446158,1752647442924,-613.99,0.00021917,2]
[372446160,1752647442934,-303.94379622,0.00021917,2]
[372446163,1752647442944,-460.0,0.00021917,2]
[372446165,1752647442954,-460.0,0.00021917,2]
[372446167,1752647442964,-643.27,0.00021917,2]
[372446169,1752647442975,-460.0,0.00021917,2]
[372446171,1752647442986,-923.79,0.00021917,2]
[372446173,1752647442996,-460.0,0.00021917,2]
[372446175,1752647443006,-461.17897847,0.00021917,2]
[372446177,1752647443015,-460.0,0.00021917,2]
[372446180,1752647443025,-460.0,0.00021917,2]
[372446182,1752647443035,-460.0,0.00021917,2]
[372446184,1752647443045,-460.0,0.00021917,2]
[372446186,1752647443054,-462.36796185,0.00021917,2]
[372446189,1752647443069,-623.47,0.00021917,2]
[372446191,1752647443079,-1826.86,0.00021917,2]
[372446193,1752647443089,-460.0,0.00021917,2]
[372446195,1752647443100,-672.64,0.00021917,2]
[372446197,1752647443110,-151.0,0.00021917,2]
[372446199,1752647443120,-460.0,0.00021917,2]
[372446201,1752647443130,-460.0,0.00021917,2]
[372446203,1752647443140,-500.0,0.00021917,2]
[372446206,1752647443150,-500.0,0.00021917,2]
[372446208,1752647443160,-480.0,0.00021917,2]
[372446210,1752647443170,-373.79350706,0.00021917,2]
[372446212,1752647443180,-1157.21,0.00021917,2]
[372446214,1752647443190,-460.0,0.00021917,2]
[372446216,1752647443200,-467.89,0.00021917,2]
[372446218,1752647443210,-848.66,0.00021917,2]
[372446220,1752647443220,-615.26,0.00021917,2]
[372446222,1752647443230,-294.191834,0.00021917,2]
[372446224,1752647443240,-152.847074,0.00021917,2]
[372446226,1752647443249,-460.0,0.00021917,2]
[372446228,1752647443258,-460.0,0.00021917,2]
[372446230,1752647443268,-995.04,0.00021917,2]
[372446232,1752647443279,-634.28,0.00021917,2]
[372446234,1752647443289,-460.0,0.00021917,2]
[372446236,1752647443299,-460.0,0.00021917,2]
[372446238,1752647443309,-460.0,0.00021917,2]
[372446240,1752647443319,-461.03171597,0.00021917,2]
[372446242,1752647443328,-460.0,0.00021917,2]
[372446245,1752647443339,-463.92664724,0.00021917,2]
[372446247,1752647443349,-460.0,0.00021917,2]
[372446249,1752647443358,-461.43735828,0.00021917,2]
[372446251,1752647443368,-460.0,0.00021917,2]
[372446253,1752647443379,-460.0,0.00021917,2]
[372446255,1752647443389,-460.0,0.00021917,2]
[372446257,1752647443399,-460.0,0.00021917,2]
[372446259,1752647443408,-460.0,0.00021917,2]
[372446261,1752647443418,-460.0,0.00021917,2]
[372446263,1752647443429,-460.0,0.00021917,2]
[372446265,1752647443439,-461.97226822,0.00021917,2]
[372446267,1752647443449,-460.0,0.00021917,2]
[372446269,1752647443459,-460.0,0.00021917,2]
[372446271,1752647443469,-460.0,0.00021917,2]
[372446273,1752647443479,-460.0,0.00021917,2]
[372446275,1752647443489,-461.47165208,0.00021917,2]
[372446277,1752647443499,-520.95,0.00021917,2]
[372446279,1752647443509,-301.717814,0.00021917,2]
[372446282,1752647443520,-460.0,0.00021917,2]
[372446284,1752647443530,-1247.11,0.00021917,2]
[372446286,1752647443540,-460.0,0.00021917,2]
[372446288,1752647443550,-460.0,0.00021917,2]
[372446290,1752647443560,-460.0,0.00021917,2]
[372446292,1752647443570,-460.0,0.00021917,2]
[372446294,1752647443580,-460.0,0.00021917,2]
[372446296,1752647443590,-460.0,0.00021917,2]
[372446298,1752647443600,-460.0,0.00021917,2]
[372446300,1752647443610,-460.0,0.00021917,2]
[372446302,1752647443620,-710.72,0.00021917,2]
[372446304,1752647443630,-629.23,0.00021917,2]
[372446306,1752647443640,-460.0,0.00021917,2]
[372446308,1752647443653,-460.0,0.00021917,2]
[372446310,1752647443663,-460.0,0.00021917,2]
[372446312,1752647443672,-500.0,0.00021917,2]
[372446314,1752647443683,-500.0,0.00021917,2]
[372446317,1752647443695,-624.6,0.00021917,2]
[372446319,1752647443705,-154.989823,0.00021917,2]
[372446321,1752647443715,-500.0,0.00021917,2]
[372446323,1752647443725,-1234.07,0.00021917,2]
[372446325,1752647443735,-500.0,0.00021917,2]
[372446327,1752647443745,-656.27,0.00021917,2]
[372446329,1752647443755,-994.92,0.00021917,2]
[372446331,1752647443765,-252.14489683,0.00021917,2]
[372446333,1752647443775,-460.0,0.00021917,2]
[372446335,1752647443785,-888.19,0.00021917,2]
[372446337,1752647443795,-556.52860107,0.00021917,2]
[372446339,1752647443805,-460.0,0.00021917,2]
[372446341,1752647443815,-460.0,0.00021917,2]
[372446343,1752647443825,-1181.03,0.00021917,2]
[372446345,1752647443834,-461.42462784,0.00021917,2]
[372446347,1752647443844,-460.0,0.00021917,2]
[372446349,1752647443853,-460.0,0.00021917,2]
[372446351,1752647443863,-851.69,0.00021917,2]
[372446353,1752647443874,-460.0,0.00021917,2]
[372446355,1752647443884,-460.0,0.00021917,2]
[372446357,1752647443894,-460.0,0.00021917,2]
[372446359,1752647443904,-460.0,0.00021917,2]
[372446361,1752647443914,-460.0,0.00021917,2]
[372446363,1752647443924,-151.0,0.00021917,2]
[372446366,1752647443935,-574.55724694,0.00021917,2]
[372446368,1752647443945,-1701.69,0.00021917,2]
[372446370,1752647443956,-460.0,0.00021917,2]
[372446372,1752647443966,-460.0,0.00021917,2]
[372446373,1752647443976,-460.0,0.00021917,2]
[372446374,1752647443987,-460.0,0.00021917,2]
[372446375,1752647443996,-922.11,0.00021917,2]
[372446376,1752647444006,-2389.56,0.00021917,2]
[372446377,1752647444016,-151.0,0.00021917,2]
[372446378,1752647444026,-493.69,0.00021917,2]
[372446379,1752647444036,-460.0,0.00021917,2]
[372446380,1752647444046,-151.0,0.00021917,2]
[372446381,1752647444056,-460.0,0.00021917,2]
[372446383,1752647444066,-460.0,0.00021917,2]
[372446385,1752647444075,-460.0,0.00021917,2]
[372446387,1752647444085,-460.0,0.00021917,2]
[372446389,1752647444096,-151.0,0.00021917,2]
[372446391,1752647444106,-460.0,0.00021917,2]
[372446393,1752647444115,-520.96,0.00021917,2]
[372446395,1752647444125,-460.0,0.00021917,2]
[372446397,1752647444135,-500.0,0.00021917,2]
[372446399,1752647444144,-460.0,0.00021917,2]
[372446401,1752647444154,-151.0,0.00021917,2]
[372446403,1752647444164,-462.7719112,0.00021917,2]
[372446405,1752647444173,-1859.06,0.00021917,2]
[372446407,1752647444184,-383.43965968,0.00021917,2]
[372446409,1752647444194,-1057.44,0.00021917,2]
[372446411,1752647444203,-494.66986843,0.00021917,2]
[372446418,1752647444342,-795.18,0.00021917,2]
[372446419,1752647444351,-151.0,0.00021917,2]
[372446420,1752647444360,-460.0,0.00021917,2]
[372446421,1752647444370,-630.47,0.00021917,2]
[372446422,1752647444379,-460.0,0.00021917,2]
[372446423,1752647444389,-460.0,0.00021917,2]
[372446424,1752647444398,-460.0,0.00021917,2]
[372446425,1752647444408,-555.62,0.00021917,2]
[372446426,1752647444417,-1325.58,0.00021917,2]
[372446427,1752647444427,-460.0,0.00021917,2]
[372446428,1752647444436,-460.0,0.00021917,2]
[372446429,1752647444446,-550.54,0.00021917,2]
[372446430,1752647444456,-460.0,0.00021917,2]
[372446431,1752647444466,-460.0,0.00021917,2]
[372446432,1752647444476,-494.26712565,0.00021917,2]
[372446433,1752647444485,-460.0,0.00021917,2]
[372446434,1752647444495,-464.60695455,0.00021917,2]
[372446435,1752647444505,-460.0,0.00021917,2]
[372446436,1752647444514,-460.0,0.00021917,2]
[372446437,1752647444524,-460.0,0.00021917,2]
[372446438,1752647444534,-460.0,0.00021917,2]
[372446439,1752647444543,-1415.78,0.00021917,2]
[372446440,1752647444553,-460.0,0.00021917,2]
[372446441,1752647444563,-1424.31,0.00021917,2]
[372446442,1752647444572,-460.0,0.00021917,2]
[372446443,1752647444582,-3035.24,0.00021917,2]
[372446444,1752647444592,-460.0,0.00021917,2]
[372446445,1752647444601,-460.0,0.00021917,2]
[372446446,1752647444610,-460.0,0.00021917,2]
[372446447,1752647444620,-460.0,0.00021917,2]
[372446448,1752647444629,-460.0,0.00021917,2]
[372446449,1752647444639,-151.0,0.00021917,2]
[372446450,1752647444652,-486.37,0.00021917,2]
[372446451,1752647444661,-460.0,0.00021917,2]
[372446452,1752647444671,-460.0,0.00021917,2]
[372446453,1752647444681,-151.0,0.00021917,2]
[372446454,1752647444690,-460.0,0.00021917,2]
[372446455,1752647444699,-460.0,0.00021917,2]
[372446456,1752647444709,-460.0,0.00021917,2]
[372446457,1752647444719,-1718.98,0.00021917,2]
[372446458,1752647444728,-460.0,0.00021917,2]
[372446459,1752647444738,-460.0,0.00021917,2]
[372446460,1752647444747,-460.0,0.00021917,2]
[372446461,1752647444756,-839.53,0.00021917,2]
[372446462,1752647444765,-460.0,0.00021917,2]
[372446463,1752647444775,-460.0,0.00021917,2]
[372446464,1752647444784,-460.0,0.00021917,2]
[372446465,1752647444793,-151.0,0.00021917,2]
[372446466,1752647444802,-460.0,0.00021917,2]
[372446467,1752647444811,-460.0,0.00021917,2]
[372446468,1752647444821,-460.0,0.00021917,2]
[372446469,1752647444831,-460.0,0.00021917,2]
[372446470,1752647444840,-2216.8,0.00021917,2]
[372446471,1752647444850,-460.0,0.00021917,2]
[372446472,1752647444859,-460.0,0.00021917,2]
[372446473,1752647444872,-2760.22,0.00021917,2]
[372446474,1752647444882,-460.0,0.00021917,2]
[372446475,1752647444892,-827.1,0.00021917,2]
[372446476,1752647444902,-500.0,0.00021917,2]
[372446477,1752647444912,-614.03,0.00021917,2]
[372446478,1752647444921,-461.11225935,0.00021917,2]
[372446479,1752647444931,-460.0,0.00021917,2]
[372446480,1752647444940,-460.0,0.00021917,2]
[372446481,1752647444950,-460.0,0.00021917,2]
[372446482,1752647444960,-151.0,0.00021917,2]
[372446483,1752647444969,-500.0,0.00021917,2]
[372446484,1752647444979,-651.58,0.00021917,2]
[372446485,1752647444989,-500.0,0.00021917,2]
[372446486,1752647444999,-500.0,0.00021917,2]
[372446487,1752647445009,-500.0,0.00021917,2]
[372446488,1752647445018,-460.0,0.00021917,2]
[372446489,1752647445027,-460.0,0.00021917,2]
[372446490,1752647445037,-460.0,0.00021917,2]
[372446491,1752647445047,-460.0,0.00021917,2]
[372446492,1752647445058,-460.0,0.00021917,2]
[372446493,1752647445072,-460.0,0.00021917,2]
[372446494,1752647445082,-1741.2,0.00021917,2]
[372446495,1752647445091,-767.54,0.00021917,2]
[372446496,1752647445100,-460.0,0.00021917,2]
[372446497,1752647445110,-460.0,0.00021917,2]
[372446498,1752647445120,-1113.93,0.00021917,2]
[372446499,1752647445131,-460.0,0.00021917,2]
[372446500,1752647445141,-1076.05,0.00021917,2]
[372446501,1752647445151,-472.31,0.00021917,2]
[372446502,1752647445162,-460.0,0.00021917,2]
[372446503,1752647445177,-460.0,0.00021917,2]
[372446504,1752647445186,-460.0,0.00021917,2]
[372446505,1752647445196,-460.0,0.00021917,2]
[372446506,1752647445205,-460.59,0.00021917,2]
[372446507,1752647445215,-460.0,0.00021917,2]
[372446508,1752647445224,-460.0,0.00021917,2]
[372446509,1752647445234,-583.71,0.00021917,2]
[372446510,1752647445243,-633.47,0.00021917,2]
[372446511,1752647445253,-502.47966585,0.00021917,2]
[372446512,1752647445262,-460.0,0.00021917,2]
[372446513,1752647445272,-460.0,0.00021917,2]
[372446514,1752647445281,-610.13,0.00021917,2]
[372446515,1752647445291,-2799.15,0.00021917,2]
[372446516,1752647445300,-1384.67,0.00021917,2]
[372446517,1752647445310,-1453.97,0.00021917,2]
[372446518,1752647445319,-560.88,0.00021917,2]
[372446519,1752647445328,-1014.75,0.00021917,2]
[372446520,1752647445338,-460.0,0.00021917,2]
[372446521,1752647445347,-945.93,0.00021917,2]
[372446522,1752647445357,-3502.81,0.00021917,2]
[372446523,1752647445367,-2382.84,0.00021917,2]
[372446524,1752647445376,-479.56,0.00021917,2]
[372446525,1752647445386,-460.0,0.00021917,2]
[372446526,1752647445395,-955.97,0.00021917,2]
[372446527,1752647445405,-460.0,0.00021917,2]
[372446528,1752647445414,-460.0,0.00021917,2]
[372446529,1752647445424,-654.5,0.00021917,2]
[372446530,1752647445434,-540.73,0.00021917,2]
[372446531,1752647445444,-473.95702472,0.00021917,2]
[372446532,1752647445454,-476.26,0.00021917,2]
[372446533,1752647445464,-460.0,0.00021917,2]
[372446534,1752647445473,-2014.48,0.00021917,2]
[372446535,1752647445482,-460.0,0.00021917,2]
[372446536,1752647445491,-460.0,0.00021917,2]
[372446537,1752647445500,-707.35,0.00021917,2]
[372446538,1752647445509,-460.0,0.00021917,2]
[372446539,1752647445519,-811.41,0.00021917,2]
[372446540,1752647445528,-460.0,0.00021917,2]
[372446541,1752647445538,-460.0,0.00021917,2]
[372446542,1752647445547,-669.66,0.00021917,2]
[372446543,1752647445557,-460.0,0.00021917,2]
[372446544,1752647445566,-3837.43,0.00021917,2]
[372446545,1752647445576,-460.0,0.00021917,2]
[372446546,1752647445585,-460.0,0.00021917,2]
[372446547,1752647445595,-460.0,0.00021917,2]
[372446548,1752647445605,-1794.55,0.00021917,2]
[372446549,1752647445615,-460.0,0.00021917,2]
[372446550,1752647445624,-460.0,0.00021917,2]
[372446551,1752647445634,-460.0,0.00021917,2]
[372446552,1752647445644,-460.0,0.00021917,2]
[372446553,1752647445656,-460.0,0.00021917,2]
[372446554,1752647445666,-2662.58,0.00021917,2]
[372446555,1752647445675,-508.68293681,0.00021917,2]
[372446556,1752647445685,-500.0,0.00021917,2]
[372446557,1752647445694,-2813.36,0.00021917,2]
[372446558,1752647445705,-500.0,0.00021917,2]
[372446559,1752647445715,-514.39869453,0.00021917,2]
[372446560,1752647445725,-460.0,0.00021917,2]
[372446561,1752647445735,-460.0,0.00021917,2]
[372446562,1752647445744,-460.0,0.00021917,2]
[372446563,1752647445753,-460.0,0.00021917,2]
[372446564,1752647445763,-460.0,0.00021917,2]
[372446565,1752647445772,-998.04,0.00021917,2]
[372446566,1752647445781,-460.20085256,0.00021917,2]
[372446567,1752647445791,-460.0,0.00021917,2]
[372446568,1752647445800,-460.0,0.00021917,2]
[372446569,1752647445810,-510.55412271,0.00021917,2]
[372446570,1752647445819,-1149.99,0.00021917,2]
[372446571,1752647445828,-460.0,0.00021917,2]
[372446572,1752647445838,-460.0,0.00021917,2]
[372446573,1752647445846,-460.0,0.00021917,2]
[372446574,1752647445856,-460.0,0.00021917,2]
[372446575,1752647445865,-460.0,0.00021917,2]
[372446576,1752647445875,-460.0,0.00021917,2]
[372446577,1752647445884,-460.0,0.00021917,2]
[372446578,1752647445892,-460.0,0.00021917,2]
[372446580,1752647445902,-460.0,0.00021917,2]
[372446581,1752647445911,-460.0,0.00021917,2]
[372446582,1752647445920,-460.0,0.00021917,2]
[372446583,1752647445929,-460.0,0.00021917,2]
[372446584,1752647445939,-3954.32,0.00021917,2]
[372446585,1752647445948,-460.0,0.00021917,2]
[372446586,1752647445958,-460.0,0.00021917,2]
[372446587,1752647445967,-460.0,0.00021917,2]
[372446588,1752647445977,-778.91,0.00021917,2]
[372446589,1752647445986,-460.0,0.00021917,2]
[372446590,1752647445996,-460.0,0.00021917,2]
[372446591,1752647446005,-460.0,0.00021917,2]
[372446592,1752647446015,-462.34735879,0.00021917,2]
[372446593,1752647446024,-460.0,0.00021917,2]
[372446594,1752647446034,-460.0,0.00021917,2]